[Event "LAT-chT Higher League 2019"]
[Site "Riga"]
[Date "2019.10.13"]
[Round "9.4"]
[White "Bernotas, Arturs"]
[Black "Jazdanovs, Aleksandrs"]
[Result "1/2-1/2"]
[ECO "B52"]
[WhiteElo "2366"]
[BlackElo "2209"]
[Annotator "NA"]
[PlyCount "82"]
[EventDate "2019.02.15"]
[EventType "team-tourn"]
[EventCountry "LAT"]
[SourceTitle "playchess.com"]
[Source "ChessBase"]
[SourceQuality "1"]
[TimeControl "40/5400+30:1800+30"]

1. e4 {[%emt 0:03:25]} c5 {[%emt 0:01:24]} 2. Nf3 {[%emt 0:00:19]} d6 {[%emt 0:00:41]} 3. Bb5+ {[%emt 0:00:29]} Bd7 {[%emt 0:01:20]} 4. Bxd7+ {[%emt 0:01:21]} Qxd7 {[%emt 0:00:08]} 5. c4 {[%emt 0:01:18]} Nf6 {[%emt 0:01:27]} 6. Nc3 {[%emt 0:00:31]} g6 {[%emt 0:00:20]} 7. d4 {[%emt 0:02:28]} cxd4 {[%emt 0:02:03]} 8. Nxd4 {[%emt 0:00:09]} Bg7 {[%emt 0:01:30]} 9. h3 {[%emt 0:02:26]} Nc6 {[%emt 0:04:46]} 10. Be3 {[%emt 0:00:28]} O-O {[%emt 0:02:06]} 11. O-O {[%emt 0:01:06]} Rac8 {[%emt 0:07:36]} 12. b3 {[%emt 0:03:40]} b6 {[%emt 0:04:34]} 13. Qd3 {[%emt 0:11:02]} Nh5 {[%emt 0:03:19]} 14. Nxc6 {[%emt 0:05:41]} Qxc6 {[%emt 0:00:24]} 15. Rac1 {[%emt 0:02:04]} Qb7 {[%emt 0:08:57]} 16. a4 {[%emt 0:12:31]} Rfd8 {[%emt 0:05:49]} 17. Rfd1 {[%emt 0:03:39]} Nf6 {[%emt 0:05:05]} 18. Nd5 {[%emt 0:05:34]} Re8 {[%emt 0:03:35]} 19. Bg5 {[%emt 0:03:02]} Nxd5 {[%emt 0:02:10]} 20. cxd5 {[%emt 0:00:30]} Bb2 {[%emt 0:04:31]} 21. Rb1 {[%emt 0:04:37]} Bf6 {[%emt 0:06:15]} 22. Be3 {[%emt 0:15:29]} Rc3 {[%emt 0:03:50]} 23. Qb5 {[%emt 0:01:01]} Rec8 {[%emt 0:00:08]} 24. a5 {[%emt 0:01:05]} h5 {[%emt 0:02:48]} 25. Rdc1 {[%emt 0:05:35]} Rxc1+ {[%emt 0:02:57]} 26. Rxc1 {[%emt 0:00:50]} Rxc1+ {[%emt 0:02:04]} 27. Bxc1 {[%emt 0:00:03]} Qc8 {[%emt 0:04:37]} 28. Qc6 {[%emt 0:02:04]} Qa6 {[%emt 0:02:26]} 29. axb6 {[%emt 0:03:55]} axb6 {[%emt 0:02:16]} 30. Be3 {[%emt 0:01:35]} Qd3 {[%emt 0:00:50]} 31. Qc4 {[%emt 0:00:31]} Qb1+ {[%emt 0:02:05]} 32. Kh2 {[%emt 0:00:23]} b5 {[%emt 0:00:03]} 33. Qxb5 {[%emt 0:01:34]} Qxe4 {[%emt 0:00:06]} 34. Qc4 {[%emt 0:01:51]} Be5+ {[%emt 0:02:31]} 35. g3 {[%emt 0:00:26]} Qf3 {[%emt 0:03:30]} 36. Bb6 {[%emt 0:01:27]} g5 {[%emt 0:02:17]} 37. Kg1 {[%emt 0:00:21]} g4 {[%emt 0:03:24]} 38. hxg4 {[%emt 0:00:47]} h4 {[%emt 0:00:02]} 39. gxh4 {[%emt 0:01:01]} Qh3 {[%emt 0:00:02]} 40. Qe4 {[%emt 0:00:51]} Qxh4 {[%emt 0:02:31]} 41. Qf3 {[%emt 0:30:48]} Qh7 {[%emt 0:31:38]} 1/2-1/2

[Event "LAT-chT Higher League 2019"]
[Site "Riga"]
[Date "2019.10.13"]
[Round "9.5"]
[White "Badelka, Olga"]
[Black "Chernyak, Viktoria"]
[Result "1-0"]
[ECO "D32"]
[WhiteElo "2413"]
[BlackElo "2284"]
[Annotator "NA"]
[PlyCount "139"]
[EventDate "2019.02.15"]
[EventType "team-tourn"]
[EventCountry "LAT"]
[SourceTitle "playchess.com"]
[Source "ChessBase"]
[SourceQuality "1"]
[TimeControl "40/5400+30:1800+30"]

1. c4 {[%emt 0:00:23]} e6 {[%emt 0:00:09]} 2. Nf3 {[%emt 0:00:40]} d5 {[%emt 0:01:06]} 3. e3 {[%emt 0:00:33]} Nf6 {[%emt 0:00:19]} 4. Nc3 {[%emt 0:00:41]} c5 {[%emt 0:03:35]} 5. cxd5 {[%emt 0:00:54]} exd5 {[%emt 0:01:50]} 6. d4 {[%emt 0:00:23]} Nc6 {[%emt 0:00:13]} 7. Be2 {[%emt 0:01:51]} Be7 {[%emt 0:03:15]} 8. O-O {[%emt 0:00:24]} O-O {[%emt 0:03:05]} 9. dxc5 {[%emt 0:05:45]} Bxc5 {[%emt 0:00:25]} 10. Na4 {[%emt 0:00:20]} Be7 {[%emt 0:01:09]} 11. b3 {[%emt 0:00:34]} Be6 {[%emt 0:06:52]} 12. Bb2 {[%emt 0:00:23]} Rc8 {[%emt 0:00:09]} 13. Nd4 {[%emt 0:13:01]} Bd6 {[%emt 0:09:01]} 14. Nxe6 {[%emt 0:07:59]} fxe6 {[%emt 0:00:10]} 15. Nc3 {[%emt 0:04:51]} a6 {[%emt 0:01:04]} 16. Rc1 {[%emt 0:01:58]} Qe7 {[%emt 0:04:15]} 17. Qd2 {[%emt 0:14:20]} Kh8 {[%emt 0:14:07]} 18. g3 {[%emt 0:01:46]} Bb4 {[%emt 0:03:59]} 19. Qd3 {[%emt 0:02:06]} Ne5 {[%emt 0:06:01]} 20. Qd4 {[%emt 0:00:44]} Nc6 {[%emt 0:03:17]} 21. Qh4 {[%emt 0:01:11]} e5 {[%emt 0:01:49]} 22. Rcd1 {[%emt 0:11:34]} Rcd8 {[%emt 0:06:00]} 23. Bf3 {[%emt 0:04:10]} Qf7 {[%emt 0:03:46]} 24. Bg2 {[%emt 0:00:41]} Be7 {[%emt 0:04:03]} 25. Qh3 {[%emt 0:01:56]} Nb4 {[%emt 0:02:54]} 26. a3 {[%emt 0:02:54]} Nc6 {[%emt 0:00:21]} 27. b4 {[%emt 0:05:53]} Rd6 {[%emt 0:06:03]} 28. Ne2 {[%emt 0:02:26]} Qg6 {[%emt 0:00:59]} 29. Bc1 {[%emt 0:06:14]} Qc2 {[%emt 0:03:22]} 30. Rd2 {[%emt 0:00:23]} Qc4 {[%emt 0:00:22]} 31. f4 {[%emt 0:02:57]} Ne4 {[%emt 0:00:58]} 32. Bxe4 {[%emt 0:01:41]} Qxe4 {[%emt 0:00:14]} 33. Rdd1 {[%emt 0:00:53]} exf4 {[%emt 0:02:54]} 34. Nxf4 {[%emt 0:00:23]} d4 {[%emt 0:00:37]} 35. Qg2 {[%emt 0:01:12]} Qxg2+ {[%emt 0:00:32]} 36. Kxg2 {[%emt 0:00:09]} Rfd8 {[%emt 0:01:56]} 37. e4 {[%emt 0:00:45]} Kg8 {[%emt 0:02:44]} 38. Nd5 {[%emt 0:00:34]} Re6 {[%emt 0:00:59]} 39. Rfe1 {[%emt 0:00:27]} Bd6 {[%emt 0:00:15]} 40. Bf4 {[%emt 0:00:57]} Rde8 {[%emt 0:01:06]} 41. Bxd6 {[%emt 0:31:08]} Rxd6 {[%emt 0:30:01]} 42. a4 {[%emt 0:01:07]} h6 {[%emt 0:00:59]} 43. b5 {[%emt 0:00:14]} axb5 {[%emt 0:04:35]} 44. axb5 {[%emt 0:00:01]} Ne7 {[%emt 0:00:00]} 45. Nf4 {[%emt 0:01:08]} Rb6 {[%emt 0:00:00]} 46. Rb1 {[%emt 0:00:17]} Ra8 {[%emt 0:00:00]} 47. Rb2 {[%emt 0:01:19]} Ra5 {[%emt 0:00:00]} 48. Reb1 {[%emt 0:00:05]} Kf7 {[%emt 0:00:00]} 49. Nd3 {[%emt 0:00:39]} Ke6 {[%emt 0:00:00]} 50. Rb4 {[%emt 0:00:36]} Ra2+ {[%emt 0:00:53]} 51. Kf3 {[%emt 0:00:08]} Rxh2 {[%emt 0:01:05]} 52. Rxd4 {[%emt 0:00:10]} Rc2 {[%emt 0:00:37]} 53. Ke3 {[%emt 0:00:49]} Rd6 {[%emt 0:00:22]} 54. Nf4+ {[%emt 0:00:45]} Ke5 {[%emt 0:00:48]} 55. Rxd6 {[%emt 0:00:22]} Kxd6 {[%emt 0:00:03]} 56. Rd1+ {[%emt 0:00:04]} Ke5 {[%emt 0:00:41]} 57. Rd7 {[%emt 0:00:23]} Rc3+ {[%emt 0:00:40]} 58. Nd3+ {[%emt 0:00:46]} Kf6 {[%emt 0:00:19]} 59. Rxb7 {[%emt 0:00:21]} Nc8 {[%emt 0:00:23]} 60. Kd4 {[%emt 0:00:33]} Rc2 {[%emt 0:00:30]} 61. b6 {[%emt 0:01:07]} g5 {[%emt 0:01:05]} 62. e5+ {[%emt 0:00:27]} Kg6 {[%emt 0:00:11]} 63. Rb8 {[%emt 0:01:30]} Ne7 {[%emt 0:00:23]} 64. Rf8 {[%emt 0:00:22]} Kh5 {[%emt 0:01:12]} 65. b7 {[%emt 0:00:20]} Rc7 {[%emt 0:00:44]} 66. Nc5 {[%emt 0:00:50]} Kg4 {[%emt 0:00:14]} 67. Kc4 {[%emt 0:00:22]} Nc6 {[%emt 0:00:15]} 68. Kb5 {[%emt 0:00:33]} Rxb7+ {[%emt 0:00:13]} 69. Kxc6 {[%emt 0:00:28]} Rg7 {[%emt 0:00:54]} 70. Ne4 {[%emt 0:00:23]} 1-0

[Event "LAT-chT Higher League 2019"]
[Site "Riga"]
[Date "2019.10.13"]
[Round "9.6"]
[White "Neiksans, Arturs"]
[Black "Volodin, Aleksandr"]
[Result "1/2-1/2"]
[ECO "B30"]
[WhiteElo "2570"]
[BlackElo "2491"]
[Annotator "RC"]
[PlyCount "167"]
[EventDate "2019.02.15"]
[EventType "team-tourn"]
[EventCountry "LAT"]
[SourceTitle "playchess.com"]
[Source "ChessBase"]
[SourceQuality "1"]
[TimeControl "40/5400+30:1800+30"]

1. e4 {[%emt 0:00:00]} c5 {[%emt 0:00:00]} 2. Nf3 {[%emt 0:00:00]} Nc6 {[%emt 0:00:03]} 3. Bb5 {[%emt 0:00:00]} e6 {[%emt 0:00:05]} 4. O-O {[%emt 0:00:10]} Nge7 {[%emt 0:00:30]} 5. Re1 {[%emt 0:00:33]} Qc7 {[%emt 0:01:02]} 6. c3 {[%emt 0:00:21]} a6 {[%emt 0:00:16]} 7. Bf1 {[%emt 0:00:27]} d5 {[%emt 0:00:12]} 8. exd5 {[%emt 0:03:33]} Nxd5 {[%emt 0:00:12]} 9. d4 {[%emt 0:00:04]} cxd4 {[%emt 0:01:56]} 10. Nxd4 {[%emt 0:00:04]} Be7 {[%emt 0:02:05]} 11. Nxc6 {[%emt 0:02:58]} Qxc6 {[%emt 0:01:42]} 12. c4 {[%emt 0:02:18]} Nf6 {[%emt 0:00:31]} 13. Nc3 {[%emt 0:00:06]} O-O {[%emt 0:01:22]} 14. Bf4 {[%emt 0:02:16]} Rd8 {[%emt 0:04:18]} 15. Qb3 {[%emt 0:00:53]} b6 {[%emt 0:15:51]} 16. Be2 {[%emt 0:09:47]} Bb7 {[%emt 0:00:29]} 17. Bf3 {[%emt 0:00:09]} Qc8 {[%emt 0:00:44]} 18. Na4 {[%emt 0:03:01]} Nd7 {[%emt 0:08:12]} 19. Rac1 {[%emt 0:11:54]} Bxf3 {[%emt 0:11:17]} 20. Qxf3 {[%emt 0:01:00]} Ra7 {[%emt 0:00:30]} 21. Red1 {[%emt 0:13:38]} Rb7 {[%emt 0:03:55]} 22. h3 {[%emt 0:07:56]} h6 {[%emt 0:11:03]} 23. b3 {[%emt 0:06:54]} Re8 {[%emt 0:08:48]} 24. Qg3 {[%emt 0:16:15]} Kh8 {[%emt 0:00:53]} 25. Bd6 {[%emt 0:00:31]} Bg5 {[%emt 0:01:15]} 26. Bf4 {[%emt 0:02:58]} Bxf4 {[%emt 0:02:01]} 27. Qxf4 {[%emt 0:00:03]} Nc5 {[%emt 0:00:09]} 28. Nxc5 {[%emt 0:01:31]} Qxc5 {[%emt 0:00:39]} 29. Qd6 {[%emt 0:00:22]} Rc8 {[%emt 0:03:35]} 30. Qxc5 {[%emt 0:01:36]} Rxc5 {[%emt 0:00:05]} 31. Rd8+ {[%emt 0:01:07]} Kh7 {[%emt 0:00:08]} 32. Ra8 {[%emt 0:03:42]} b5 {[%emt 0:02:49]} 33. Rxa6 {[%emt 0:00:22]} bxc4 {[%emt 0:00:06]} 34. Rxc4 {[%emt 0:01:08]} Rxc4 {[%emt 0:00:06]} 35. bxc4 {[%emt 0:00:04]} Rb1+ {[%emt 0:00:15]} 36. Kh2 {[%emt 0:00:05]} Rc1 {[%emt 0:00:04]} 37. Ra4 {[%emt 0:00:47]} Rc2 {[%emt 0:00:16]} 38. Kg3 {[%emt 0:00:10]} e5 {[%emt 0:00:40]} 39. Kf3 {[%emt 0:01:07]} f5 {[%emt 0:00:34]} 40. Ke3 {[%emt 0:00:56]} Kg6 {[%emt 0:02:22]} 41. g3 {[%emt 0:31:41]} Kf6 {[%emt 0:31:59]} 42. h4 {[%emt 0:00:28]} e4 {[%emt 0:05:30]} 43. Ra6+ {[%emt 0:01:36]} Ke7 {[%emt 0:02:22]} 44. Ra3 {[%emt 0:01:29]} Kf6 {[%emt 0:02:12]} 45. Ra4 {[%emt 0:01:38]} g5 {[%emt 0:04:36]} 46. Ra6+ {[%emt 0:00:05]} Ke5 {[%emt 0:00:51]} 47. Ra5+ {[%emt 0:00:03]} Kf6 {[%emt 0:00:26]} 48. c5 {[%emt 0:03:05]} gxh4 {[%emt 0:03:06]} 49. gxh4 {[%emt 0:00:03]} Ke6 {[%emt 0:00:20]} 50. a4 {[%emt 0:01:55]} Ke5 {[%emt 0:01:32]} 51. c6+ {[%emt 0:00:35]} Ke6 {[%emt 0:00:01]} 52. c7 {[%emt 0:00:23]} Rxc7 {[%emt 0:00:21]} 53. Kf4 {[%emt 0:00:31]} Rc2 {[%emt 0:01:03]} 54. Re5+ {[%emt 0:00:03]} Kd6 {[%emt 0:00:28]} 55. Rxf5 {[%emt 0:00:05]} Rxf2+ {[%emt 0:00:12]} 56. Kxe4 {[%emt 0:00:04]} Ra2 {[%emt 0:01:16]} 57. Ra5 {[%emt 0:00:23]} Rh2 {[%emt 0:00:17]} 58. Ra6+ {[%emt 0:00:07]} Ke7 {[%emt 0:00:22]} 59. Rxh6 {[%emt 0:00:21]} Ra2 {[%emt 0:00:04]} 60. Rh7+ {[%emt 0:00:21]} Ke6 {[%emt 0:00:52]} 61. Ra7 {[%emt 0:00:06]} Rh2 {[%emt 0:00:07]} 62. Kd4 {[%emt 0:00:08]} Kd6 {[%emt 0:01:02]} 63. Ra6+ {[%emt 0:00:02]} Kd7 {[%emt 0:00:12]} 64. Rh6 {[%emt 0:00:57]} Ra2 {[%emt 0:00:06]} 65. Ke5 {[%emt 0:00:04]} Rxa4 {[%emt 0:01:23]} 66. Kf6 {[%emt 0:00:03]} Rg4 {[%emt 0:00:48]} 67. h5 {[%emt 0:00:38]} Rg1 {[%emt 0:00:25]} 68. Rg6 {[%emt 0:00:09]} Rf1+ {[%emt 0:00:32]} 69. Kg7 {[%emt 0:00:10]} Ke7 {[%emt 0:00:18]} 70. Ra6 {[%emt 0:00:37]} Rg1+ {[%emt 0:00:08]} 71. Rg6 {[%emt 0:00:05]} Rf1 {[%emt 0:00:06]} 72. h6 {[%emt 0:05:29]} Rf7+ {[%emt 0:00:06]} 73. Kh8 {[%emt 0:00:03]} Rf8+ {[%emt 0:01:06]} 74. Rg8 {[%emt 0:00:05]} Rf1 {[%emt 0:00:14]} 75. Kg7 {[%emt 0:00:29]} Rg1+ {[%emt 0:00:13]} 76. Kh7 {[%emt 0:00:03]} Rf1 {[%emt 0:00:09]} 77. Kg7 {[%emt 0:01:48]} Rg1+ {[%emt 0:00:16]} 78. Kh8 {[%emt 0:00:06]} Rf1 {[%emt 0:00:05]} 79. Kh7 {[%emt 0:00:40]} Kf7 {[%emt 0:00:47]} 80. Rg7+ {[%emt 0:00:07]} Kf8 {[%emt 0:00:06]} 81. Kg6 {[%emt 0:00:03]} Rg1+ {[%emt 0:00:12]} 82. Kf6 {[%emt 0:00:03]} Rxg7 {[%emt 0:00:26]} 83. hxg7+ {[%emt 0:00:02]} Kg8 {[%emt 0:00:05]} 84. Kg6 {[%emt 0:00:03]} 1/2-1/2

[Event "LAT-chT Higher League 2019"]
[Site "Riga"]
[Date "2019.10.13"]
[Round "9.7"]
[White "Mustaps, Matiss"]
[Black "Batashevs, Arsens"]
[Result "0-1"]
[ECO "B06"]
[WhiteElo "2366"]
[BlackElo "2135"]
[Annotator "NA"]
[PlyCount "88"]
[EventDate "2019.02.15"]
[EventType "team-tourn"]
[EventCountry "LAT"]
[SourceTitle "playchess.com"]
[Source "ChessBase"]
[SourceQuality "1"]
[TimeControl "40/5400+30:1800+30"]

1. e4 {[%emt 0:00:00]} g6 {[%emt 0:00:00]} 2. d4 {[%emt 0:00:00]} d6 {[%emt 0:00:09]} 3. Nc3 {[%emt 0:00:29]} Bg7 {[%emt 0:00:04]} 4. Be3 {[%emt 0:00:09]} a6 {[%emt 0:00:15]} 5. a4 {[%emt 0:00:14]} Nf6 {[%emt 0:01:07]} 6. f3 {[%emt 0:00:09]} Nc6 {[%emt 0:00:09]} 7. g4 {[%emt 0:00:24]} e5 {[%emt 0:00:41]} 8. Nge2 {[%emt 0:03:06]} Bxg4 {[%emt 0:01:35]} 9. dxe5 {[%emt 0:01:25]} Nxe5 {[%emt 0:00:14]} 10. Nd4 {[%emt 0:13:32]} c5 {[%emt 0:00:54]} 11. fxg4 {[%emt 0:01:30]} Nfxg4 {[%emt 0:00:09]} 12. Nf5 {[%emt 0:03:42]} gxf5 {[%emt 0:00:43]} 13. Bf4 {[%emt 0:00:59]} Bh6 {[%emt 0:05:28]} 14. Bxe5 {[%emt 0:02:48]} dxe5 {[%emt 0:00:50]} 15. Qxd8+ {[%emt 0:00:05]} Rxd8 {[%emt 0:00:01]} 16. exf5 {[%emt 0:00:22]} Bd2+ {[%emt 0:07:10]} 17. Ke2 {[%emt 0:00:05]} Bf4 {[%emt 0:00:08]} 18. Ne4 {[%emt 0:06:03]} Ke7 {[%emt 0:02:51]} 19. Bg2 {[%emt 0:01:58]} Ne3 {[%emt 0:00:29]} 20. f6+ {[%emt 0:00:12]} Ke6 {[%emt 0:00:01]} 21. Bh3+ {[%emt 0:27:01]} Kd5 {[%emt 0:00:06]} 22. Nc3+ {[%emt 0:00:03]} Kc6 {[%emt 0:11:30]} 23. Rag1 {[%emt 0:00:11]} Rd6 {[%emt 0:05:55]} 24. Ne4 {[%emt 0:02:54]} Rd4 {[%emt 0:00:02]} 25. Kf3 {[%emt 0:09:46]} Nxc2 {[%emt 0:00:40]} 26. Rg7 {[%emt 0:01:25]} Rd3+ {[%emt 0:00:49]} 27. Kg4 {[%emt 0:00:46]} h5+ {[%emt 0:02:18]} 28. Kh4 {[%emt 0:00:06]} Rd4 {[%emt 0:01:56]} 29. Rxf7 {[%emt 0:09:10]} Ne3 {[%emt 0:00:04]} 30. Ng3 {[%emt 0:00:16]} Bh6+ {[%emt 0:00:27]} 31. Kxh5 {[%emt 0:00:08]} Bf8+ {[%emt 0:00:28]} 32. Kg6 {[%emt 0:02:58]} Rh6+ {[%emt 0:00:04]} 33. Kg5 {[%emt 0:00:14]} Rxh3 {[%emt 0:00:02]} 34. Ne4 {[%emt 0:00:50]} Rxe4 {[%emt 0:00:06]} 35. Rg1 {[%emt 0:00:02]} Bd6 {[%emt 0:00:42]} 36. b4 {[%emt 0:01:13]} Rxb4 {[%emt 0:00:27]} 37. a5 {[%emt 0:00:05]} Rxh2 {[%emt 0:00:51]} 38. Kg6 {[%emt 0:00:47]} Rg4+ {[%emt 0:00:19]} 39. Rxg4 {[%emt 0:00:04]} Nxg4 {[%emt 0:00:06]} 40. Rg7 {[%emt 0:00:18]} Rh6+ {[%emt 0:00:19]} 41. Kf7 {[%emt 0:30:24]} Rxf6+ {[%emt 0:30:11]} 42. Kg8 {[%emt 0:00:01]} Rf8+ {[%emt 0:00:07]} 43. Kh7 {[%emt 0:00:04]} Nf6+ {[%emt 0:00:03]} 44. Kh6 {[%emt 0:00:07]} Rh8+ {[%emt 0:00:04]} 0-1

[Event "LAT-chT Higher League 2019"]
[Site "Riga"]
[Date "2019.10.13"]
[Round "9.8"]
[White "Bekasovs, Rihards"]
[Black "Lavendelis, Egons"]
[Result "1/2-1/2"]
[ECO "A30"]
[WhiteElo "2172"]
[BlackElo "2273"]
[Annotator "NA"]
[PlyCount "51"]
[EventDate "2019.02.15"]
[EventType "team-tourn"]
[EventCountry "LAT"]
[SourceTitle "playchess.com"]
[Source "ChessBase"]
[SourceQuality "1"]
[TimeControl "40/5400+30:1800+30"]

1. Nf3 {[%emt 0:00:00]} Nf6 {[%emt 0:00:00]} 2. c4 {[%emt 0:00:00]} g6 {[%emt 0:00:00]} 3. b3 {[%emt 0:00:29]} Bg7 {[%emt 0:00:50]} 4. Bb2 {[%emt 0:00:18]} O-O {[%emt 0:00:23]} 5. g3 {[%emt 0:00:32]} c5 {[%emt 0:03:44]} 6. Bg2 {[%emt 0:01:17]} Nc6 {[%emt 0:03:36]} 7. O-O {[%emt 0:00:38]} b6 {[%emt 0:12:49]} 8. d4 {[%emt 0:03:50]} cxd4 {[%emt 0:00:49]} 9. Nxd4 {[%emt 0:00:40]} Bb7 {[%emt 0:00:29]} 10. Nc3 {[%emt 0:01:02]} Rc8 {[%emt 0:03:19]} 11. Rc1 {[%emt 0:07:34]} d6 {[%emt 0:05:07]} 12. Qd2 {[%emt 0:03:43]} Qd7 {[%emt 0:08:40]} 13. Nxc6 {[%emt 0:21:22]} Bxc6 {[%emt 0:00:10]} 14. Nd5 {[%emt 0:01:00]} Nxd5 {[%emt 0:06:48]} 15. cxd5 {[%emt 0:04:15]} Bb5 {[%emt 0:03:26]} 16. Bxg7 {[%emt 0:01:03]} Kxg7 {[%emt 0:00:02]} 17. Rfe1 {[%emt 0:02:57]} Rxc1 {[%emt 0:03:38]} 18. Rxc1 {[%emt 0:00:45]} Rc8 {[%emt 0:00:52]} 19. e4 {[%emt 0:01:09]} Rc7 {[%emt 0:01:56]} 20. h4 {[%emt 0:12:29]} h5 {[%emt 0:09:49]} 21. Kh2 {[%emt 0:01:20]} Qc8 {[%emt 0:00:22]} 22. Bh3 {[%emt 0:00:34]} Bd7 {[%emt 0:00:05]} 23. Rxc7 {[%emt 0:00:44]} Qxc7 {[%emt 0:00:02]} 24. Bxd7 {[%emt 0:03:46]} Qxd7 {[%emt 0:00:02]} 25. Qc3+ {[%emt 0:00:09]} f6 {[%emt 0:01:27]} 26. Kg2 {[%emt 0:03:07]} 1/2-1/2

[Event "LAT-chT Higher League 2019"]
[Site "Riga"]
[Date "2019.10.13"]
[Round "9.9"]
[White "Tronenkovs, Valdis"]
[Black "Kolasa, Pjotrs"]
[Result "1/2-1/2"]
[ECO "C28"]
[WhiteElo "2267"]
[BlackElo "2032"]
[Annotator "NA"]
[PlyCount "139"]
[EventDate "2019.02.15"]
[EventType "team-tourn"]
[EventCountry "LAT"]
[SourceTitle "playchess.com"]
[Source "ChessBase"]
[SourceQuality "1"]
[TimeControl "40/5400+30:1800+30"]

1. e4 {[%emt 0:00:00]} e5 {[%emt 0:05:06]} 2. Bc4 {[%emt 0:00:11]} Nf6 {[%emt 0:00:08]} 3. d3 {[%emt 0:00:39]} Be7 {[%emt 0:00:34]} 4. Nc3 {[%emt 0:05:53]} O-O {[%emt 0:00:58]} 5. f4 {[%emt 0:01:21]} d6 {[%emt 0:06:20]} 6. Nf3 {[%emt 0:03:32]} Nc6 {[%emt 0:01:04]} 7. f5 {[%emt 0:07:16]} Nd4 {[%emt 0:02:51]} 8. Be3 {[%emt 0:27:31]} Nxf5 {[%emt 0:11:15]} 9. exf5 {[%emt 0:02:05]} d5 {[%emt 0:00:11]} 10. Nxe5 {[%emt 0:16:33]} dxc4 {[%emt 0:04:12]} 11. Qf3 {[%emt 0:03:24]} cxd3 {[%emt 0:05:47]} 12. O-O-O {[%emt 0:00:33]} Qd6 {[%emt 0:08:03]} 13. Nxd3 {[%emt 0:02:54]} Qc6 {[%emt 0:01:19]} 14. Qxc6 {[%emt 0:01:32]} bxc6 {[%emt 0:00:01]} 15. Rhf1 {[%emt 0:04:41]} Ng4 {[%emt 0:13:09]} 16. Bg1 {[%emt 0:03:10]} Bg5+ {[%emt 0:01:50]} 17. Kb1 {[%emt 0:00:10]} Ne3 {[%emt 0:00:03]} 18. Bxe3 {[%emt 0:00:09]} Bxe3 {[%emt 0:00:01]} 19. Rde1 {[%emt 0:08:43]} Bb6 {[%emt 0:06:43]} 20. Ne4 {[%emt 0:01:14]} Ba6 {[%emt 0:00:28]} 21. b3 {[%emt 0:03:05]} Rad8 {[%emt 0:02:05]} 22. Rf3 {[%emt 0:00:09]} Rfe8 {[%emt 0:01:18]} 23. c4 {[%emt 0:02:02]} Bd4 {[%emt 0:01:19]} 24. Rff1 {[%emt 0:03:23]} h5 {[%emt 0:08:05]} 25. Kc2 {[%emt 0:00:33]} Bc8 {[%emt 0:00:13]} 26. h3 {[%emt 0:01:25]} h4 {[%emt 0:02:20]} 27. g4 {[%emt 0:00:07]} hxg3 {[%emt 0:00:09]} 28. Nxg3 {[%emt 0:00:07]} Bf6 {[%emt 0:05:29]} 29. Re4 {[%emt 0:01:16]} Bh4 {[%emt 0:04:25]} 30. Rxh4 {[%emt 0:00:27]} Re3 {[%emt 0:00:02]} 31. Ne4 {[%emt 0:00:28]} Rdxd3 {[%emt 0:01:30]} 32. Nc5 {[%emt 0:01:27]} Rd8 {[%emt 0:02:03]} 33. Rf2 {[%emt 0:00:00]} Re5 {[%emt 0:00:21]} 34. Na4 {[%emt 0:00:20]} Bxf5+ {[%emt 0:00:14]} 35. Kb2 {[%emt 0:00:11]} g6 {[%emt 0:00:32]} 36. Rhf4 {[%emt 0:00:07]} Rd3 {[%emt 0:02:23]} 37. h4 {[%emt 0:00:01]} Kg7 {[%emt 0:01:50]} 38. b4 {[%emt 0:00:07]} Ree3 {[%emt 0:00:27]} 39. h5 {[%emt 0:01:03]} a6 {[%emt 0:02:29]} 40. hxg6 {[%emt 0:02:11]} fxg6 {[%emt 0:00:01]} 41. Rg2 {[%emt 0:29:26]} Kf6 {[%emt 0:30:25]} 42. Rgf2 {[%emt 0:00:01]} Kg5 {[%emt 0:00:53]} 43. Nc5 {[%emt 0:01:04]} Rd1 {[%emt 0:00:12]} 44. a3 {[%emt 0:00:26]} Rd8 {[%emt 0:01:37]} 45. Nxa6 {[%emt 0:00:27]} Rdd3 {[%emt 0:00:06]} 46. Nc5 {[%emt 0:00:34]} Rxa3 {[%emt 0:00:38]} 47. Rd4 {[%emt 0:00:23]} Ra8 {[%emt 0:01:04]} 48. Nd7 {[%emt 0:00:53]} Rd8 {[%emt 0:01:08]} 49. Rg2+ {[%emt 0:00:29]} Kh6 {[%emt 0:00:01]} 50. Rh2+ {[%emt 0:00:30]} Kg7 {[%emt 0:00:12]} 51. Rhd2 {[%emt 0:00:16]} Re1 {[%emt 0:01:13]} 52. Nc5 {[%emt 0:00:44]} Rb1+ {[%emt 0:00:14]} 53. Kc3 {[%emt 0:00:09]} Ra8 {[%emt 0:00:24]} 54. Rb2 {[%emt 0:01:01]} Ra3+ {[%emt 0:00:43]} 55. Rb3 {[%emt 0:00:26]} Rc1+ {[%emt 0:00:39]} 56. Kb2 {[%emt 0:00:19]} Raa1 {[%emt 0:00:02]} 57. b5 {[%emt 0:00:46]} cxb5 {[%emt 0:00:28]} 58. cxb5 {[%emt 0:00:31]} Rab1+ {[%emt 0:01:06]} 59. Ka2 {[%emt 0:00:01]} Ra1+ {[%emt 0:00:34]} 60. Kb2 {[%emt 0:00:03]} Rcb1+ {[%emt 0:00:12]} 61. Kc3 {[%emt 0:00:03]} Re1 {[%emt 0:00:45]} 62. Kb4 {[%emt 0:00:41]} Kf6 {[%emt 0:00:22]} 63. Na6 {[%emt 0:01:13]} Rec1 {[%emt 0:00:42]} 64. Rc3 {[%emt 0:00:59]} Ra4+ {[%emt 0:00:29]} 65. Kxa4 {[%emt 0:00:09]} Rxc3 {[%emt 0:00:01]} 66. Kb4 {[%emt 0:00:21]} Rc1 {[%emt 0:00:42]} 67. Rc4 {[%emt 0:00:23]} Rxc4+ {[%emt 0:01:20]} 68. Kxc4 {[%emt 0:00:05]} Bd7 {[%emt 0:00:00]} 69. Nxc7 {[%emt 0:00:22]} Bxb5+ {[%emt 0:00:00]} 70. Nxb5 {[%emt 0:00:05]} 1/2-1/2

[Event "LAT-chT Higher League 2019"]
[Site "Riga"]
[Date "2019.10.13"]
[Round "9.10"]
[White "Limanovska, Elizabete"]
[Black "Rogule, Laura"]
[Result "0-1"]
[ECO "B52"]
[WhiteElo "2186"]
[BlackElo "2269"]
[Annotator "NA"]
[PlyCount "54"]
[EventDate "2019.02.15"]
[EventType "team-tourn"]
[EventCountry "LAT"]
[SourceTitle "playchess.com"]
[Source "ChessBase"]
[SourceQuality "1"]
[TimeControl "40/5400+30:1800+30"]

1. e4 {[%emt 0:00:15]} c5 {[%emt 0:00:00]} 2. Nf3 {[%emt 0:00:02]} d6 {[%emt 0:00:00]} 3. Bb5+ {[%emt 0:00:26]} Bd7 {[%emt 0:00:07]} 4. Bxd7+ {[%emt 0:00:04]} Qxd7 {[%emt 0:00:13]} 5. c4 {[%emt 0:00:20]} e5 {[%emt 0:08:59]} 6. Nc3 {[%emt 0:03:30]} Nc6 {[%emt 0:00:39]} 7. d3 {[%emt 0:04:30]} g6 {[%emt 0:02:26]} 8. O-O {[%emt 0:02:42]} Bg7 {[%emt 0:00:13]} 9. a3 {[%emt 0:01:52]} Nge7 {[%emt 0:02:10]} 10. Rb1 {[%emt 0:08:02]} O-O {[%emt 0:05:44]} 11. b4 {[%emt 0:00:48]} f5 {[%emt 0:07:06]} 12. Nd5 {[%emt 0:07:17]} fxe4 {[%emt 0:09:08]} 13. dxe4 {[%emt 0:03:27]} Nd4 {[%emt 0:00:57]} 14. Ne1 {[%emt 0:13:13]} Nxd5 {[%emt 0:11:04]} 15. exd5 {[%emt 0:03:26]} b5 {[%emt 0:19:09]} 16. bxc5 {[%emt 0:03:43]} bxc4 {[%emt 0:05:05]} 17. Nc2 {[%emt 0:08:30]} dxc5 {[%emt 0:09:14]} 18. Ne3 {[%emt 0:00:30]} Rab8 {[%emt 0:00:48]} 19. Bd2 {[%emt 0:05:17]} Rxb1 {[%emt 0:04:21]} 20. Qxb1 {[%emt 0:00:04]} c3 {[%emt 0:00:32]} 21. Be1 {[%emt 0:03:46]} c2 {[%emt 0:00:56]} 22. Nxc2 {[%emt 0:00:03]} Qf5 {[%emt 0:00:24]} 23. Qb7 {[%emt 0:00:31]} Nxc2 {[%emt 0:00:26]} 24. Bd2 {[%emt 0:05:57]} Qd3 {[%emt 0:01:56]} 25. Bg5 {[%emt 0:00:32]} Nd4 {[%emt 0:01:06]} 26. Rb1 {[%emt 0:01:59]} Ne2+ {[%emt 0:00:44]} 27. Kh1 {[%emt 0:00:09]} Nc3 {[%emt 0:00:43]} 0-1